bitfinex-derivatives/quotes_SOLF0:USTF0_20250830
["timestamp","ask_amount","ask_price","bid_price","bid_amount"]
[1756585101447,7.79,200.36,200.28,7.55]
[1756585114258,7.79,200.39,200.3,3.13404534]
[1756585114458,7.79,200.39,200.31,7.55]
[1756585121667,10.92404534,200.39,200.31,7.55]
[1756585123762,7.92,200.35,200.26,7.33]
[1756585126261,3.13404534,200.33,200.26,7.33]
[1756585126459,7.92,200.32,200.26,7.33]
[1756585133769,3.13404534,200.34,200.26,7.33]
[1756585137472,2.01019215,200.33,200.27,7.33]
[1756585138774,9.93019215,200.33,200.27,7.33]
[1756585140373,7.92,200.39,200.31,2.01019215]
[1756585140576,2.01019215,200.38,200.32,7.33]
[1756585140780,7.92,200.36,200.32,7.33]
[1756585141076,7.92,200.33,200.32,7.33]
[1756585141377,7.92,200.33,200.28,2.01019215]
[1756585141571,2.01019215,200.34,200.28,2.01019215]
[1756585141769,2.01019215,200.34,200.29,7.33]
[1756585142276,2.01019215,200.34,200.28,2.01019215]
[1756585143173,2.01019215,200.34,200.29,7.33]
[1756585143877,2.01019215,200.34,200.28,2.01019215]
[1756585144176,2.01019215,200.34,200.29,7.33]
[1756585144573,2.01019215,200.34,200.28,2.01019215]
[1756585144774,2.01019215,200.34,200.29,7.33]
[1756585144978,2.01019215,200.34,200.28,2.01019215]
[1756585145181,2.01019215,200.34,200.29,7.33]
[1756585145480,2.01019215,200.34,200.28,2.01019215]
[1756585145671,2.01019215,200.34,200.29,7.33]
[1756585146277,2.01019215,200.34,200.28,2.01019215]
[1756585146687,2.01019215,200.34,200.29,7.33]
[1756585147289,2.01019215,200.34,200.28,2.01019215]
[1756585147790,2.01019215,200.34,200.29,8.09]
[1756585147989,2.01019215,200.34,200.28,2.01019215]
[1756585148490,2.01019215,200.34,200.29,8.09]
[1756585149190,2.01019215,200.34,200.28,2.01019215]
[1756585149691,2.01019215,200.34,200.29,8.09]
[1756585150390,2.01019215,200.34,200.28,2.01019215]
[1756585150590,2.01019215,200.34,200.29,8.09]
[1756585150888,2.01019215,200.34,200.28,2.01019215]
[1756585151087,2.01019215,200.34,200.29,8.09]
[1756585151282,7.55,200.31,200.26,4.16643962]
[1756585151487,7.55,200.31,200.25,14.26663177]
[1756585151791,7.55,200.37,200.3,8.09]
[1756585152090,2.01019215,200.35,200.29,2.01019215]
[1756585152292,9.56019215,200.35,200.3,8.09]
[1756585152486,9.56019215,200.35,200.29,10.10019215]
[1756585152893,9.56019215,200.35,200.29,8.09]
[1756585153088,2.01019215,200.33,200.29,8.09]
[1756585153592,2.01019215,200.33,200.25,6.17663177]
[1756585153796,7.55,200.3,200.26,8.09]
[1756585154087,7.55,200.3,200.25,8.09]
[1756585154686,7.55,200.3,200.24,4.16643962]
[1756585154891,7.55,200.3,200.24,12.25643962]
[1756585156593,2.01019215,200.3,200.23,8.09]
[1756585156891,2.01019215,200.3,200.24,8.09]
[1756585157995,2.01019215,200.3,200.24,10.10019215]
[1756585158296,2.01019215,200.28,200.24,8.09]
[1756585158688,9.56019215,200.28,200.22,6.17663177]
[1756585158891,2.01019215,200.28,200.23,8.09]
[1756585159692,2.01019215,200.28,200.22,14.26663177]
[1756585159996,2.01019215,200.28,200.22,6.17663177]
[1756585160700,2.01019215,200.28,200.23,8.09]
[1756585161100,2.01019215,200.28,200.22,6.17663177]
[1756585161402,9.56019215,200.28,200.22,14.26663177]
[1756585162596,2.01019215,200.26,200.2,4.16643962]
[1756585162798,9.56019215,200.26,200.19,8.09]
[1756585164501,7.55,200.23,200.18,4.16643962]
[1756585164701,7.55,200.23,200.18,6.17663177]
[1756585165095,7.55,200.23,200.19,8.09]
[1756585165500,7.55,200.23,200.18,6.17663177]
[1756585165699,7.55,200.23,200.18,2.01019215]
[1756585166398,7.55,200.23,200.17,4.16643962]
[1756585166598,7.55,200.23,200.19,8.09]
[1756585167596,2.01019215,200.24,200.18,2.01019215]
[1756585167999,7.55,200.23,200.18,2.01019215]
[1756585168395,2.01019215,200.24,200.18,2.01019215]
[1756585168600,7.55,200.23,200.18,2.01019215]
[1756585168995,2.01019215,200.24,200.18,10.10019215]
[1756585169596,7.55,200.23,200.18,10.10019215]
[1756585169800,2.01019215,200.24,200.18,10.10019215]
[1756585170504,2.01019215,200.24,200.18,2.01019215]
[1756585170893,7.55,200.23,200.18,2.01019215]
[1756585171097,2.01019215,200.24,200.18,2.01019215]
[1756585171298,7.55,200.23,200.18,2.01019215]
[1756585171500,2.01019215,200.24,200.18,2.01019215]
[1756585171804,7.55,200.23,200.18,2.01019215]
[1756585172504,2.01019215,200.24,200.18,2.01019215]
[1756585172701,9.56019215,200.24,200.18,2.01019215]
[1756585179504,9.43019215,200.24,200.18,9.86019215]
[1756585179805,7.42,200.21,200.15,7.85]
[1756585180010,7.42,200.21,200.15,9.86019215]
[1756585180714,2.01019215,200.22,200.15,9.86019215]
[1756585180908,7.42,200.21,200.15,9.86019215]
[1756585181111,2.01019215,200.2,200.15,7.85]
[1756585181309,7.42,200.19,200.12,9.86019215]
[1756585181512,2.01019215,200.18,200.12,9.86019215]
[1756585181713,9.43019215,200.18,200.12,9.86019215]
[1756585181902,7.42,200.18,200.12,9.86019215]
[1756585184212,51.96,200.22,200.12,9.86019215]
[1756585184213,2.01019215,200.17,200.12,9.86019215]
[1756585184408,7.42,200.21,200.13,7.85]
[1756585184714,9.43019215,200.18,200.12,9.86019215]
[1756585190913,7.42,200.21,200.13,7.85]
[1756585191118,9.43019215,200.21,200.15,7.85]
[1756585191416,9.43019215,200.19,200.15,7.85]
[1756585191619,2.01019215,200.21,200.15,7.85]
[1756585196723,9.43019215,200.21,200.15,7.85]
[1756585196930,7.42,200.19,200.13,7.85]
[1756585197224,2.01019215,200.18,200.12,14.04391128]
[1756585197616,7.42,200.15,200.12,7.85]
[1756585197921,7.42,200.16,200.13,7.88313112]
[1756585198325,9.46287877,200.17,200.14,7.85]
[1756585200622,0.03268662,200.17,200.14,9.86019215]
[1756585200827,0.03268662,200.17,200.15,7.85]
[1756585201023,0.03268662,200.17,200.14,2.01019215]
[1756585202321,0.03268662,200.17,200.15,7.85]
[1756585203022,0.03268662,200.17,200.16,9.86019215]
[1756585203727,7.42,200.24,200.16,2.51019215]
[1756585203928,7.42,200.24,200.2,7.85]
[1756585204323,2.01019215,200.26,200.2,7.85]
[1756585205020,2.01019215,200.26,200.21,0.03699386]
[1756585205323,9.43019215,200.26,200.22,7.85]
[1756585205527,337.63019215,200.29,200.24,7.85]
[1756585205831,337.63019215,200.29,200.23,9.86019215]
[1756585206332,7.42,200.26,200.23,7.85]
[1756585206829,2.01019215,200.27,200.21,2.04718601]
[1756585207420,343.04,200.29,200.22,7.79]
[1756585211029,7.42,200.29,200.21,0.03699386]
[1756585211234,7.42,200.29,200.21,7.82699386]
[1756585229340,9.43088068,200.29,200.23,7.79]
[1756585237948,7.5,200.37,200.29,7.78]
[1756585238244,2.01088068,200.35,200.29,7.78]
[1756585238646,7.5,200.34,200.31,7.78]
[1756585238949,2.01088068,200.35,200.31,7.78]
[1756585239148,9.51088068,200.35,200.3,0.03753606]
[1756585239446,9.51088068,200.35,200.31,7.78]
[1756585239648,9.51088068,200.35,200.3,2.04841674]
[1756585239846,7.5,200.34,200.31,7.78]
[1756585240046,2.01088068,200.37,200.31,7.78]
[1756585240246,2.01088068,200.33,200.3,0.03753606]
[1756585240445,9.51088068,200.31,200.3,0.03753606]
[1756585241353,7.5,200.31,200.3,0.03753606]
[1756585242745,7.5,200.33,200.3,7.81753606]
[1756585243842,7.5,200.33,200.3,0.03753606]
[1756585244842,3.14233163,200.34,200.3,0.03753606]
[1756585245239,7.5,200.33,200.3,0.03753606]
[1756585245947,3.14233163,200.34,200.3,0.03753606]
[1756585246446,7.5,200.33,200.3,0.03753606]
[1756585246943,3.14233163,200.34,200.3,0.03753606]
[1756585247142,10.64233163,200.31,200.3,0.03753606]
[1756585247447,132.64233163,200.31,200.3,0.03753606]
[1756585248246,7.5,200.3,200.19,7.78]
[1756585248549,7.5,200.26,200.19,7.78]
[1756585250051,3.14233163,200.24,200.19,7.78]
[1756585250248,7.5,200.23,200.19,7.78]
[1756585250448,3.14233163,200.24,200.19,7.78]
[1756585250944,7.5,200.23,200.19,7.78]
[1756585251656,7.5,200.23,200.17,7.78]
[1756585252848,3.14233163,200.24,200.17,7.78]
[1756585260255,7.5,200.26,200.17,7.78]
[1756585260450,7.5,200.34,200.24,3.14233163]
[1756585260656,7.5,200.34,200.25,7.78]
[1756585263655,7.5,200.34,200.26,7.78]
[1756585263854,7.5,200.34,200.28,7.78]
[1756585270058,129.45,200.38,200.29,3.14233163]
[1756585270262,129.45,200.38,200.3,7.54]
[1756585270958,7.49,200.38,200.3,7.54]
[1756585271162,7.49,200.38,200.27,11.73428649]
[1756585271359,3.14233163,200.36,200.24,7.54]
[1756585271562,7.49,200.35,200.24,7.54]
[1756585272064,7.49,200.35,200.27,7.54]
[1756585272752,7.49,200.35,200.26,3.14233163]
[1756585272753,7.49,200.35,200.3,7.54]
[1756585272953,7.49,200.35,200.29,3.14233163]
[1756585273265,465.31,200.39,200.3,7.54]
[1756585274062,343.15,200.39,200.3,7.54]
[1756585274264,465.33,200.39,200.3,7.54]
[1756585274463,343.15,200.39,200.33,7.54]
[1756585275363,343.15,200.39,200.32,3.14233163]
[1756585277760,343.15,200.39,200.29,3.14233163]
[1756585278160,7.49,200.36,200.27,7.54]
[1756585278369,7.49,200.34,200.27,7.54]
[1756585279567,7.49,200.39,200.29,3.14233163]
[1756585279772,7.49,200.39,200.3,7.54]
[1756585288273,3.14233163,200.37,200.3,7.54]
[1756585288780,7.49,200.36,200.3,7.54]
[1756585293284,3.14233163,200.37,200.3,7.54]
[1756585293488,7.49,200.39,200.3,7.54]
[1756585296388,7.49,200.39,200.3,3.14233163]
[1756585296686,7.49,200.39,200.31,7.54]
[1756585304292,7.49,200.39,200.32,7.39]
[1756585306795,11.05233163,200.42,200.33,7.39]
[1756585306994,11.05233163,200.42,200.33,11.58428649]
[1756585307197,11.05233163,200.42,200.34,7.39]
[1756585311002,7.91,200.38,200.31,4.19428649]
[1756585311197,7.91,200.38,200.3,11.58428649]
[1756585311904,3.14233163,200.39,200.3,11.58428649]
[1756585312100,7.91,200.38,200.3,7.39]
[1756585320212,3.14233163,200.36,200.28,4.19428649]
[1756585320410,7.91,200.35,200.26,7.39]
[1756585320719,7.91,200.38,200.3,7.39]
[1756585321015,7.91,200.42,200.32,3.14233163]
[1756585321215,7.91,200.42,200.33,7.39]
[1756585322210,7.91,200.42,200.34,7.39]
[1756585325614,336.32872948,200.46,200.34,7.39]
[1756585325615,7.91,200.45,200.35,7.39]
[1756585325918,7.91,200.45,200.37,7.39]
[1756585328119,7.52,200.43,200.33,7.91]
[1756585328322,3.14233163,200.41,200.33,7.91]
[1756585328522,7.52,200.4,200.33,7.91]
[1756585335726,7.52,200.43,200.35,7.91]
[1756585338832,10.66233163,200.47,200.37,3.14233163]
[1756585339129,59.58233163,200.47,200.38,7.91]
[1756585339620,56.44,200.47,200.38,7.91]
[1756585339823,56.44,200.47,200.38,11.05233163]
[1756585340022,56.44,200.47,200.39,7.91]
[1756585341325,48.92,200.47,200.39,7.91]
[1756585341925,48.92,200.47,200.41,3.14233163]
[1756585342422,10.66233163,200.53,200.42,7.91]
[1756585343531,7.52,200.58,200.45,7.91]
[1756585343729,7.52,200.56,200.45,7.91]
[1756585345124,0.86802524,200.61,200.5,3.14233163]
[1756585345324,7.52,200.6,200.53,3.14233163]
[1756585345526,7.52,200.6,200.53,7.91]
[1756585346933,10.66233163,200.65,200.53,7.91]
[1756585348334,10.66233163,200.65,200.55,3.14233163]
[1756585348737,10.66233163,200.65,200.53,7.91]
[1756585349532,7.52,200.61,200.51,3.14233163]
[1756585349737,129.78,200.61,200.51,3.14233163]
[1756585351839,129.78,200.61,200.52,7.91]
[1756585361043,7.52,200.61,200.52,7.91]
[1756585373554,7.52,200.61,200.53,3.14233163]
[1756585373749,3.14233163,200.64,200.52,11.05233163]
[1756585374055,7.66,200.63,200.52,11.05233163]
[1756585375146,7.66,200.63,200.53,8.02]
[1756585387255,7.66,200.63,200.53,12.16906971]
[1756585387461,7.36,200.65,200.54,7.84]
[1756585388452,125.16233163,200.66,200.54,11.98906971]
[1756585388652,7.36,200.65,200.54,11.98906971]
[1756585389155,125.16233163,200.66,200.51,5.59062836]
[1756585389156,3.14233163,200.61,200.53,4.14906971]
[1756585389363,7.36,200.6,200.52,4.14906971]
[1756585389560,7.36,200.6,200.53,7.84]
[1756585390664,7.36,200.6,200.53,11.98906971]
[1756585391262,7.36,200.6,200.54,7.84]
[1756585396765,7.36,200.62,200.55,7.84]
[1756585396965,7.36,200.62,200.55,11.98906971]
[1756585401371,2.00446944,200.61,200.55,13.99353915]
[1756585405573,7.36,200.62,200.58,7.84]
[1756585405872,7.36,200.62,200.57,2.00446944]
[1756585406073,7.36,200.62,200.58,7.84]
[1756585406372,2.00446944,200.63,200.58,7.84]
[1756585406873,7.36,200.62,200.58,7.84]
[1756585407071,2.00446944,200.63,200.58,7.84]
[1756585407474,7.36,200.62,200.58,7.84]
[1756585407974,2.00446944,200.62,200.58,7.84]
[1756585408173,7.36,200.61,200.58,7.84]
[1756585413977,2.00446944,200.62,200.58,7.84]
[1756585414274,2.00446944,200.62,200.57,2.00446944]
[1756585414579,7.36,200.61,200.58,7.84]
[1756585416380,7.36,200.61,200.57,2.00446944]
[1756585416577,7.36,200.61,200.58,7.84]
[1756585418684,7.9,200.67,200.59,2.00446944]
[1756585418882,2.00446944,200.66,200.6,8.05]
[1756585419781,7.9,200.65,200.6,8.05]
[1756585419981,2.00446944,200.66,200.6,8.05]
[1756585420383,2.00446944,200.66,200.61,8.05]
[1756585420678,7.9,200.7,200.61,2.00446944]
[1756585420883,2.00446944,200.68,200.63,2.00446944]
[1756585421283,2.00446944,200.68,200.64,8.05]
[1756585421485,2.00446944,200.68,200.63,2.00446944]
[1756585421876,2.00446944,200.68,200.64,8.05]
[1756585422480,9.90446944,200.7,200.64,8.05]
[1756585423575,7.9,200.7,200.64,8.05]
[1756585423776,9.90446944,200.7,200.64,8.05]
[1756585424880,7.9,200.7,200.66,8.05]
[1756585425081,2.00446944,200.72,200.66,8.05]
[1756585428993,7.9,200.73,200.66,8.05]
[1756585429182,2.00446944,200.72,200.66,8.05]
[1756585429995,9.90446944,200.73,200.67,2.00446944]
[1756585430188,2.00446944,200.73,200.67,2.00446944]
[1756585430493,2.00446944,200.73,200.68,8.05]
[1756585430989,7.9,200.72,200.66,2.00446944]
[1756585431290,7.9,200.72,200.67,8.05]
[1756585432088,7.9,200.72,200.66,2.00446944]
[1756585432288,7.9,200.72,200.67,8.05]
[1756585432489,7.9,200.72,200.66,2.00446944]
[1756585432692,7.9,200.72,200.67,8.05]
[1756585432993,7.9,200.72,200.66,2.00446944]
[1756585433193,7.9,200.72,200.67,8.05]
[1756585433893,7.9,200.72,200.66,2.00446944]
[1756585434090,7.9,200.7,200.66,2.00446944]
[1756585434288,2.00446944,200.71,200.66,2.00446944]
[1756585435090,2.00446944,200.67,200.62,8.05]
[1756585435293,2.00446944,200.65,200.59,10.05446944]
[1756585435494,7.9,200.62,200.59,8.05]
[1756585436191,7.9,200.62,200.56,2.00446944]
[1756585436192,2.00446944,200.63,200.57,8.05]
[1756585436394,9.90446944,200.65,200.59,8.05]
[1756585436790,7.9,200.65,200.59,8.05]
[1756585436997,9.90446944,200.63,200.59,8.05]
[1756585437190,9.90446944,200.63,200.58,2.00446944]
[1756585437393,7.9,200.63,200.56,8.05]
[1756585441200,3.13150263,200.66,200.56,8.05]
[1756585442304,7.9,200.65,200.56,8.05]
[1756585444401,3.13150263,200.63,200.56,8.05]
[1756585444606,7.9,200.62,200.56,8.05]
[1756585445495,7.9,200.59,200.52,8.05]
[1756585446003,7.9,200.62,200.52,8.05]
[1756585450401,3.13150263,200.6,200.52,8.05]
[1756585450603,7.96,200.59,200.52,8.05]
[1756585459512,9.9649059,200.59,200.53,2.0049059]
[1756585467122,16.66,200.63,200.5,2.0049059]
[1756585467123,7.96,200.56,200.5,2.0049059]
[1756585467324,7.96,200.56,200.49,2.0049059]
[1756585467818,2.0049059,200.55,200.49,2.0049059]
[1756585468025,7.96,200.54,200.48,7.83]
[1756585469425,7.96,200.54,200.47,2.0049059]
[1756585469426,5.56655083,200.68,200.53,2.0049059]
[1756585469616,16.42,200.68,200.57,7.83]
[1756585469816,2.0049059,200.64,200.57,9.8349059]
[1756585470023,7.96,200.63,200.57,9.8349059]
[1756585470826,7.96,200.63,200.57,2.0049059]
[1756585471226,2.0049059,200.62,200.57,2.0049059]
[1756585471427,7.96,200.64,200.55,7.83]
[1756585480231,7.96,200.64,200.55,12.01424598]
[1756585480426,7.96,200.64,200.55,7.83]
[1756585482230,7.96,200.64,200.55,12.01424598]
[1756585482831,7.96,200.64,200.56,7.76]
[1756585483631,7.96,200.64,200.58,7.76]
[1756585484724,3.1317428,200.67,200.58,7.76]
[1756585484932,7.83,200.67,200.6,3.1317428]
[1756585485132,7.83,200.67,200.61,7.76]
[1756585487830,7.83,200.67,200.58,4.18424598]
[1756585488129,7.83,200.68,200.57,7.76]
[1756585497325,3.1317428,200.63,200.57,7.76]
[1756585497529,7.83,200.62,200.54,7.76]
[1756585498728,3.1317428,200.57,200.48,4.18424598]
[1756585498927,3.1317428,200.57,200.47,11.94424598]
[1756585499133,7.83,200.56,200.47,7.76]
[1756585503436,7.83,200.53,200.44,7.76]
[1756585504537,7.83,200.53,200.45,7.76]
[1756585505931,7.83,200.62,200.47,3.1317428]
[1756585506239,7.83,200.58,200.48,7.76]
[1756585506936,3.1317428,200.56,200.48,7.76]
[1756585507131,7.83,200.55,200.48,7.76]
[1756585510743,7.64,200.64,200.48,7.76]
[1756585510940,3.1317428,200.61,200.51,7.79]
[1756585511242,7.64,200.6,200.51,7.79]
[1756585521451,7.64,200.57,200.51,7.79]
[1756585539868,7.37,200.62,200.51,7.79]
[1756585540071,7.37,200.62,200.52,7.89]
[1756585540877,7.37,200.62,200.53,3.1317428]
[1756585541082,7.37,200.62,200.54,7.89]
[1756585541273,9.37436005,200.62,200.56,2.00436005]
[1756585541469,9.37436005,200.62,200.57,7.89]
[1756585541670,2.00436005,200.62,200.56,2.00436005]
[1756585541870,9.37436005,200.62,200.56,9.89436005]
[1756585542371,5.56655083,200.69,200.59,2.00436005]
[1756585542675,7.37,200.71,200.64,9.89436005]
[1756585543172,9.37436005,200.71,200.64,7.89]
[1756585543475,7.37,200.71,200.64,7.89]
[1756585545275,7.37,200.71,200.65,4.7814881]
[1756585545474,7.37,200.73,200.66,4.7814881]
[1756585545675,7.37,200.73,200.67,4.7814881]
[1756585545867,3.99659631,200.74,200.68,4.7814881]
[1756585546072,7.37,200.73,200.69,4.7814881]
[1756585546272,7.37,200.73,200.7,4.7814881]
[1756585546571,7.37,200.73,200.65,7.89]
[1756585546772,7.37,200.73,200.66,4.77845975]
[1756585546972,7.37,200.73,200.67,4.77845975]
[1756585547172,3.99659631,200.74,200.68,4.77845975]
[1756585547369,3.99659631,200.74,200.69,4.77845975]
[1756585547570,7.37,200.73,200.7,4.77845975]
[1756585547767,7.37,200.73,200.65,7.89]
[1756585547982,7.37,200.73,200.66,4.77594144]
[1756585548274,7.37,200.73,200.67,4.77594144]
[1756585548475,7.37,200.73,200.68,4.77594144]
[1756585548675,7.37,200.73,200.69,4.77594144]
[1756585548876,7.37,200.73,200.65,7.89]
[1756585548877,7.37,200.73,200.7,4.77594144]
[1756585549175,7.37,200.73,200.65,7.89]
[1756585549376,7.37,200.73,200.66,4.7724276]
[1756585549676,7.37,200.73,200.67,4.7724276]
[1756585549875,7.37,200.73,200.68,4.7724276]
[1756585550077,7.37,200.73,200.69,4.7724276]
[1756585550279,3.12922012,200.71,200.59,7.89]
[1756585550582,7.37,200.64,200.6,4.77148311]
[1756585550775,7.37,200.64,200.61,4.77148311]
[1756585550976,7.37,200.64,200.55,7.89]
[1756585559879,3.12922012,200.62,200.55,7.89]
[1756585560076,7.37,200.61,200.55,7.89]
[1756585561483,7.37,200.61,200.49,7.30487105]
[1756585561688,7.37,200.58,200.5,7.89]
[1756585573793,3.12922012,200.55,200.46,100.74123176]
[1756585573997,7.58,200.54,200.46,100.74123176]
[1756585575492,7.58,200.54,200.47,7.65]
[1756585580099,3.12922012,200.52,200.47,7.65]
[1756585580298,7.58,200.51,200.47,7.65]
[1756585580604,3.12922012,200.52,200.47,7.65]
[1756585580798,7.58,200.51,200.47,7.65]
[1756585580995,3.12922012,200.52,200.47,7.65]
[1756585581199,7.58,200.51,200.42,3.12922012]
[1756585581502,7.58,200.51,200.43,7.65]
[1756585590916,7.58,200.48,200.39,7.65]
[1756585592613,7.58,200.48,200.42,7.65]
[1756585609321,7.58,200.48,200.43,2.0069641]
[1756585609523,2.0069641,200.49,200.43,2.0069641]
[1756585610022,7.93,200.48,200.43,9.8769641]
[1756585610221,2.0069641,200.49,200.43,2.0069641]
[1756585610517,7.93,200.48,200.43,9.8769641]
[1756585610820,2.0069641,200.49,200.43,2.0069641]
[1756585611017,7.93,200.48,200.43,9.8769641]
[1756585611222,2.0069641,200.49,200.43,2.0069641]
[1756585611621,2.0069641,200.47,200.41,7.87]
[1756585611823,7.93,200.46,200.41,2.0069641]
[1756585612023,9.9369641,200.47,200.41,9.8769641]
[1756585614425,9.9369641,200.47,200.42,7.87]
[1756585614626,7.93,200.47,200.41,2.0069641]
[1756585615425,2.0069641,200.49,200.41,2.0069641]
[1756585615619,7.93,200.48,200.42,7.87]
[1756585615820,7.93,200.48,200.42,9.8769641]
[1756585616123,7.93,200.44,200.39,7.87]
[1756585616319,2.0069641,200.45,200.4,7.87]
[1756585616619,7.93,200.44,200.41,7.87]
[1756585616816,7.93,200.44,200.4,2.0069641]
[1756585617220,7.93,200.44,200.41,7.87]
[1756585618124,7.93,200.44,200.4,2.0069641]
[1756585618425,7.93,200.44,200.41,7.87]
[1756585619022,2.0069641,200.47,200.41,7.87]
[1756585619724,7.93,200.46,200.41,7.87]
[1756585619920,2.0069641,200.47,200.41,7.87]
[1756585620326,7.93,200.45,200.42,7.87]
[1756585620526,2.0069641,200.47,200.42,7.87]
[1756585620728,7.93,200.46,200.42,7.87]
[1756585620923,2.0069641,200.47,200.42,7.87]
[1756585621124,7.93,200.46,200.42,7.87]
[1756585621426,2.0069641,200.47,200.42,7.87]
[1756585621625,7.93,200.46,200.42,7.87]
[1756585621830,2.0069641,200.47,200.42,7.87]
[1756585622030,7.93,200.46,200.42,7.87]
[1756585622225,2.0069641,200.47,200.42,7.87]
[1756585622429,7.93,200.46,200.42,7.87]
[1756585622730,2.0069641,200.47,200.42,7.87]
[1756585622929,7.93,200.46,200.42,7.87]
[1756585623129,2.0069641,200.47,200.42,7.87]
[1756585626032,7.93,200.44,200.42,7.87]
[1756585627934,2.0069641,200.45,200.4,7.42]
[1756585628934,2.0069641,200.45,200.38,2.0069641]
[1756585629233,7.44,200.43,200.4,7.42]
[1756585629435,7.44,200.43,200.39,7.42]
[1756585629636,7.44,200.43,200.38,2.0069641]
[1756585629841,7.44,200.43,200.39,7.42]
[1756585630133,7.44,200.43,200.38,2.0069641]
[1756585630336,7.44,200.43,200.39,7.42]
[1756585630632,7.44,200.43,200.38,2.0069641]
[1756585630938,7.44,200.43,200.39,7.42]
[1756585631138,7.44,200.43,200.38,2.0069641]
[1756585631538,7.44,200.43,200.39,7.42]
[1756585631832,7.44,200.43,200.38,2.0069641]
[1756585632039,7.44,200.43,200.39,7.42]
[1756585632438,7.44,200.43,200.38,2.0069641]
[1756585632737,7.44,200.43,200.39,7.42]
[1756585633238,7.44,200.43,200.38,6.19893562]
[1756585633739,7.44,200.44,200.38,9.4269641]
[1756585634038,7.44,200.44,200.38,13.61893562]
[1756585634337,7.44,200.42,200.38,9.4269641]
[1756585634941,2.0069641,200.43,200.38,9.4269641]
[1756585635140,5.56655083,200.52,200.38,9.4269641]
[1756585635344,7.44,200.42,200.38,2.0069641]
[1756585635542,7.44,200.42,200.39,7.42]
[1756585636138,7.44,200.42,200.38,2.0069641]
[1756585637243,7.44,200.42,200.39,7.42]
[1756585637443,7.44,200.42,200.38,2.0069641]
[1756585637945,7.44,200.42,200.39,7.42]
[1756585638144,7.44,200.42,200.38,2.0069641]
[1756585638647,7.44,200.42,200.39,7.42]
[1756585639145,7.44,200.42,200.38,2.0069641]
[1756585639348,7.44,200.42,200.39,7.42]
[1756585639541,7.44,200.42,200.38,2.0069641]
[1756585639746,2.0069641,200.43,200.39,7.42]
[1756585640439,7.44,200.42,200.38,2.0069641]
[1756585640844,7.44,200.42,200.39,7.42]
[1756585641146,7.44,200.42,200.38,2.0069641]
[1756585641641,2.0069641,200.45,200.38,2.0069641]
[1756585642043,7.44,200.44,200.39,7.42]
[1756585642245,2.0069641,200.45,200.38,2.0069641]
[1756585642642,7.44,200.44,200.39,7.42]
[1756585643245,7.44,200.48,200.4,2.0069641]
[1756585643444,2.0069641,200.47,200.41,7.42]
[1756585643840,7.44,200.46,200.41,7.42]
[1756585644547,2.0069641,200.45,200.41,7.42]
[1756585645254,7.44,200.44,200.41,7.42]
[1756585645456,2.0069641,200.45,200.41,7.42]
[1756585646254,7.44,200.44,200.41,7.42]
[1756585650857,2.0069641,200.43,200.38,4.19197152]
[1756585651057,7.44,200.42,200.37,4.19197152]
[1756585651252,7.44,200.42,200.38,4.19197152]
[1756585651457,7.44,200.42,200.39,7.42]
[1756585651852,2.0069641,200.43,200.39,7.42]
[1756585652458,7.44,200.42,200.39,7.42]